bitfinex/quotes_ETHUSD_20241207
["timestamp","ask_amount","ask_price","bid_price","bid_amount"]
[1733612135334,0.8294,4006.4,4005.3,1.74767]
[1733612135534,0.8294,4006.4,4005.9,0.02296336]
[1733612135775,0.8294,4006.4,4005.3,1.74767]
[1733612135937,0.8294,4006.4,4006.0,0.02296336]
[1733612136158,0.8294,4006.4,4005.3,1.74767]
[1733612136361,0.8294,4006.4,4006.1,0.02296336]
[1733612136578,0.2834213,4006.3,4005.3,1.74767]
[1733612136786,0.8294,4006.4,4006.2,0.02296336]
[1733612136982,0.8294,4006.4,4005.3,1.74767]
[1733612137296,0.8294,4006.4,4006.3,0.02296336]
[1733612137471,0.8294,4006.4,4005.3,1.74767]
[1733612137900,0.8294,4006.4,4005.4,0.02296336]
[1733612140359,0.8294,4006.4,4005.4,0.3829437]
[1733612145779,0.8294,4006.4,4005.4,0.02296336]
[1733612145973,0.7656,4006.3,4005.2,1.82917006]
[1733612146167,0.7656,4006.3,4005.5,0.02259083]
[1733612146409,0.7656,4006.3,4005.2,3.57689006]
[1733612146581,0.7656,4006.3,4005.6,0.02259083]
[1733612146911,0.7656,4006.3,4005.7,0.02259083]
[1733612147204,0.7656,4006.2,4005.2,3.57689006]
[1733612147434,0.7656,4006.1,4005.8,0.02259083]
[1733612147584,0.25128,4006.3,4004.8,0.7512]
[1733612147585,0.95235064,4006.0,4004.8,0.7512]
[1733612147785,0.7656,4006.0,4005.9,0.02182538]
[1733612147982,0.95234042,4006.0,4004.8,0.7512]
[1733612148298,0.7656,4005.8,4004.8,0.7512]
[1733612149627,0.7656,4005.8,4004.7,1.07597006]
[1733612149628,0.8133,4005.7,4004.7,1.07597006]
[1733612149794,0.8133,4005.7,4004.7,1.44841783]
[1733612150423,2.56081,4005.7,4004.7,0.37244777]
[1733612150582,0.8133,4005.6,4004.7,0.37244777]
[1733612151651,0.8133,4005.6,4004.5,1.74803]
[1733612153468,0.8133,4005.5,4004.3,1.87513055]
[1733612153657,0.8133,4005.5,4004.3,2.95110061]
[1733612155376,1.74777,4005.1,4003.9,2.79269326]
[1733612155584,0.957277,4005.0,4003.9,1.74826]
[1733612155783,0.957277,4005.0,4003.8,1.85057006]
[1733612155784,1.74786,4004.9,4003.8,1.85057006]
[1733612155951,0.7825,4005.1,4003.8,1.07597006]
[1733612156279,1.07597006,4005.2,4003.5,2.52306]
[1733612156280,0.7825,4004.7,4003.9,0.02266125]
[1733612156792,0.7825,4004.5,4004.0,0.02266603]
[1733612157086,0.253049,4004.4,4003.5,1.07597006]
[1733612157240,0.7825,4004.5,4004.1,0.02266603]
[1733612157446,0.7825,4004.5,4003.5,1.07597006]
[1733612157771,0.7825,4004.5,4003.6,0.02283804]
[1733612158153,2.53057,4004.5,4003.6,0.02283804]
[1733612158357,0.7825,4004.5,4003.2,0.7746]
[1733612158554,0.96541442,4004.5,4003.7,0.02283804]
[1733612158747,0.96541442,4004.5,4003.2,0.7746]
[1733612158947,1.74809,4004.4,4003.8,0.02283804]
[1733612159170,0.7619,4004.3,4003.2,0.7746]
[1733612159371,0.7619,4004.3,4003.9,0.02283804]
[1733612159578,0.26929044,4004.2,4003.4,1.74851]
[1733612159886,0.7619,4004.3,4004.0,0.02283804]
[1733612160039,0.7619,4004.3,4003.3,1.74855]
[1733612160240,0.7619,4004.3,4003.2,0.7746]
[1733612160470,0.7619,4004.3,4003.4,0.02283804]
[1733612160640,0.7619,4004.3,4003.2,0.7746]
[1733612160853,0.7619,4004.3,4003.5,0.02283804]
[1733612161057,0.7619,4004.3,4003.2,2.90811001]
[1733612161563,0.7619,4004.3,4003.2,1.15952001]
[1733612161772,0.7619,4004.3,4003.3,0.02283804]
[1733612163906,0.7708,4004.2,4003.3,0.02283804]
[1733612164080,0.7708,4004.1,4003.3,0.02283804]
[1733612164257,0.7708,4004.1,4003.1,1.74863]
[1733612164454,0.7708,4004.1,4003.4,0.0232204]
[1733612164758,0.7708,4004.1,4003.5,0.0232204]
[1733612164954,0.7708,4004.1,4003.1,1.74863]
[1733612165259,0.7708,4004.1,4003.6,0.02249289]
[1733612165455,0.7708,4004.0,4003.1,1.74863]
[1733612165655,0.7708,4004.0,4003.7,0.02249289]
[1733612165895,0.7708,4004.0,4003.1,1.74863]
[1733612166079,0.7708,4004.0,4003.8,0.02249289]
[1733612166278,0.7708,4004.0,4003.1,1.74863]
[1733612166671,0.7708,4004.0,4003.2,0.02249289]
[1733612167791,0.7708,4004.0,4003.0,0.8089]
[1733612167993,0.7708,4004.0,4003.3,0.02318106]
[1733612168154,0.7708,4004.0,4003.1,0.21348701]
[1733612168358,0.7708,4004.0,4003.4,0.02320018]
[1733612168706,0.7708,4004.0,4003.2,1.74858]
[1733612168862,0.7708,4004.0,4003.5,0.02320018]
[1733612169065,0.8195,4003.9,4003.1,1.74864]
[1733612169368,0.8195,4003.9,4003.2,1.74859]
[1733612169573,0.8195,4003.9,4003.2,1.77162685]
[1733612179897,0.8195,4003.9,4003.2,0.02303685]
[1733612180098,0.7854,4003.8,4002.9,0.25]
[1733612180330,0.97494701,4003.8,4002.9,0.25]
[1733612180492,0.97494701,4003.8,4003.0,0.02305595]
[1733612181340,3.01385707,4003.8,4003.0,0.02305595]
[1733612181497,1.74839,4003.7,4003.0,0.02305595]
[1733612181848,0.7854,4003.5,4003.1,0.02228805]
[1733612182200,0.7854,4003.5,4002.9,0.25]
[1733612182201,1.07597006,4003.5,4002.9,0.25]
[1733612182401,0.7854,4003.4,4003.2,0.02246495]
[1733612182739,0.7854,4003.4,4002.9,0.25]
[1733612183038,0.7854,4003.4,4003.3,0.02246495]
[1733612183201,0.39112308,4003.4,4002.9,0.25]
[1733612183521,0.7854,4003.3,4002.9,0.25]
[1733612186112,0.7854,4003.3,4003.0,0.02246495]
[1733612186912,0.7854,4003.3,4002.9,0.25]
[1733612187111,0.7854,4003.3,4003.0,0.02246495]
[1733612187349,1.14638101,4003.3,4003.0,0.02246495]
[1733612187946,0.7854,4003.3,4003.0,0.02246495]
[1733612196135,0.18652732,4003.2,4003.0,0.02246495]
[1733612196338,0.7854,4003.3,4003.0,0.02246495]
[1733612196749,0.808,4003.1,4003.0,0.02246495]
[1733612196951,0.808,4003.1,4002.9,0.25]
[1733612197154,1.17125301,4003.0,4002.9,0.25]
[1733612199123,1.35776198,4003.0,4002.9,0.25]
[1733612200356,3.10644198,4003.0,4002.9,0.25]
[1733612200565,0.7925,4002.9,4001.6,1.74929]
[1733612200719,0.7925,4002.6,4001.6,1.74929]
[1733612201059,0.7925,4002.4,4001.6,1.74929]
[1733612201221,0.7925,4002.4,4001.7,0.02317798]
[1733612201423,0.7925,4002.4,4001.5,0.767]
[1733612201961,0.7925,4002.4,4001.6,0.02317798]
[1733612202427,1.86847006,4002.4,4001.6,0.02317798]
[1733612202752,0.3997709,4002.3,4001.7,0.02317798]
[1733612202955,0.3997709,4002.3,4001.4,1.74937]
[1733612203255,0.3997709,4002.3,4001.8,0.02317798]
[1733612203470,0.3997709,4002.3,4001.4,1.74937]
[1733612203617,0.3997709,4002.3,4001.9,0.02317798]
[1733612203819,0.2268241,4002.2,4001.4,1.74937]
[1733612204018,0.2268241,4002.2,4002.0,0.02317798]
[1733612204216,0.2268241,4002.2,4001.4,1.74937]
[1733612204427,0.2268241,4002.2,4002.1,0.02317798]
[1733612204627,0.2268241,4002.2,4001.4,1.74937]
[1733612204854,0.24950651,4002.1,4001.4,1.74937]
[1733612205666,0.3997709,4002.3,4001.4,1.74937]
[1733612205846,0.3997709,4002.3,4001.5,1.74933]
[1733612211825,0.7652,4002.2,4001.3,1.74942]
[1733612212050,0.7652,4002.2,4000.7,1.74966]
[1733612212051,0.7652,4002.2,4001.0,1.74952]
[1733612212369,2.1487709,4002.3,4001.0,1.74952]
[1733612212370,0.7652,4002.0,4001.0,1.74952]
[1733612212526,0.7652,4002.0,4001.1,1.7495]
[1733612212527,0.18411701,4001.9,4001.1,1.7495]
[1733612214239,0.18411701,4001.9,4000.9,1.74959]
[1733612214455,1.84117006,4001.8,4000.7,0.1256389]
[1733612214767,1.84117006,4001.8,4000.9,1.74958]
[1733612215142,1.84117006,4001.8,4000.5,0.8189]
[1733612215143,0.7652,4001.7,4000.5,0.8189]
[1733612215355,0.7652,4001.5,4000.6,1.7497]
[1733612216132,0.7652,4001.5,4000.7,0.02318977]
[1733612216931,0.7652,4001.5,4000.7,1.74967]
[1733612217154,0.7652,4001.5,4000.5,0.8189]
[1733612217155,0.7652,4001.5,4000.8,1.77281977]
[1733612217556,0.7652,4001.5,4000.9,1.7496]
[1733612217875,0.96956988,4001.5,4000.9,1.7496]
[1733612218080,0.96956988,4001.5,4001.0,0.02318977]
[1733612220132,0.7652,4001.4,4001.0,0.02318977]
[1733612220286,0.7652,4001.8,4001.1,0.8189]
[1733612220625,0.18610192,4002.1,4001.7,1.74924]
[1733612220626,0.7652,4002.1,4001.7,1.74924]
[1733612220987,0.7652,4002.1,4001.8,0.0231804]
[1733612221181,0.94931701,4002.1,4001.7,1.74924]
[1733612221381,0.94931701,4002.1,4001.9,0.02298896]
[1733612221621,0.94931701,4002.1,4001.7,1.74924]
[1733612221821,0.94931701,4002.1,4002.0,0.02298896]
[1733612221987,0.94931701,4002.1,4001.7,1.74924]
[1733612222321,0.94931701,4002.1,4002.0,0.02298896]
[1733612222528,0.7652,4002.4,4002.0,1.74911]
[1733612222945,0.7652,4002.4,4002.1,0.02292196]
[1733612223148,0.7652,4002.4,4002.0,1.74911]
[1733612223353,0.7652,4002.4,4002.2,0.02292196]
[1733612223638,0.7652,4002.4,4002.0,1.74911]
[1733612225014,0.94931701,4002.4,4002.0,1.74911]
[1733612227432,0.94931701,4002.4,4001.6,0.8189]
[1733612227631,0.94931701,4002.4,4002.1,0.02292196]
[1733612227632,0.7652,4002.4,4002.1,0.02292196]
[1733612227836,0.95623672,4002.7,4002.3,1.74899]
[1733612228145,0.7698,4002.7,4002.4,1.74894]
[1733612228507,0.7698,4002.7,4002.6,1.74886]
[1733612228719,0.18648724,4002.7,4002.6,1.74886]
[1733612228930,0.7997,4003.0,4002.3,0.8019]
[1733612229138,0.18651277,4002.9,4002.6,0.02274014]
[1733612229338,0.18651277,4002.9,4002.3,0.8019]
[1733612229339,0.7997,4003.0,4002.7,1.7488]
[1733612229507,0.40391287,4002.9,4002.7,1.7713727]
[1733612229710,0.21736736,4002.9,4002.7,1.7713727]
[1733612232848,0.7997,4003.3,4002.8,1.74874]
[1733612233059,0.18653026,4003.2,4002.7,0.0225727]
[1733612233266,0.7997,4003.3,4002.6,0.8019]
[1733612233267,0.7997,4003.3,4002.9,1.77066543]
[1733612233435,0.7997,4003.3,4002.9,1.74871]
[1733612233634,0.7997,4003.3,4003.0,0.02195543]
[1733612233962,0.29223142,4003.2,4002.7,1.74881]
[1733612234648,0.29223142,4003.2,4002.4,1.74891]
[1733612234859,1.84634418,4003.3,4002.9,1.74871]
[1733612235031,0.7997,4003.3,4002.3,0.8019]
[1733612235224,0.7997,4003.3,4002.4,3.4979]
[1733612235424,0.7997,4003.3,4002.9,1.74869]
[1733612235779,1.14099941,4003.3,4003.0,1.74867]
[1733612236252,1.14099941,4003.3,4003.1,1.74864]
[1733612236452,1.04664418,4003.5,4003.1,1.74864]
[1733612236640,1.84634418,4003.6,4002.8,0.8019]
[1733612236842,1.05052962,4003.5,4002.8,0.8019]
[1733612237036,1.84634418,4003.6,4003.1,1.74863]
[1733612237339,0.86413879,4003.5,4003.1,1.74863]
[1733612237542,1.84634418,4003.6,4003.1,1.74863]
[1733612237745,2.50169588,4003.5,4003.1,1.74863]
[1733612238067,0.34129941,4003.5,4003.1,1.74863]
[1733612239226,1.84634418,4003.6,4003.1,1.74863]
[1733612239430,0.86418125,4003.5,4003.1,1.74863]
[1733612239667,1.84634418,4003.6,4003.1,1.74863]
[1733612239975,2.16051618,4003.5,4003.1,1.74863]
[1733612240262,0.7997,4003.6,4003.1,1.74863]
[1733612240473,0.8641679,4003.5,4003.1,1.74863]
[1733612240777,1.84634418,4003.6,4003.1,1.74863]
[1733612240955,0.86415979,4003.5,4003.1,1.74863]
[1733612241275,0.86417672,4003.4,4003.1,1.74863]
[1733612241566,1.84634418,4003.6,4003.1,1.74863]
[1733612241743,0.86415089,4003.5,4003.1,1.74863]
[1733612242066,0.86420685,4003.4,4003.1,1.74863]
[1733612242375,0.7997,4003.6,4003.1,1.74863]
[1733612242376,1.84634418,4003.6,4003.1,1.74863]
[1733612242672,0.86411341,4003.5,4003.1,1.74863]
[1733612242828,1.84634418,4003.6,4003.1,1.74863]
[1733612243028,2.16034146,4003.5,4003.1,1.74863]
[1733612243272,1.84634418,4003.6,4003.1,1.74863]
[1733612243569,0.86413718,4003.5,4003.1,1.74863]
[1733612243742,1.84634418,4003.6,4002.9,1.74872]
[1733612243938,2.16026698,4003.5,4002.9,1.74872]
[1733612244171,0.86410679,4003.4,4002.9,1.74872]
[1733612244374,1.29616802,4003.5,4002.9,1.74872]
[1733612244668,0.8640916,4003.4,4002.9,1.74872]
[1733612244869,1.84634418,4003.6,4002.9,1.74872]
[1733612245182,2.16020828,4003.5,4002.9,1.74872]
[1733612245396,1.84634418,4003.6,4002.9,1.74872]
[1733612245557,0.86405949,4003.5,4002.9,1.74872]
[1733612245741,1.84634418,4003.6,4002.9,1.74872]
[1733612245947,0.86402452,4003.5,4002.9,1.74872]
[1733612246173,1.84634418,4003.6,4002.9,1.74872]
[1733612246384,2.16007087,4003.5,4002.9,1.74872]
[1733612246584,1.84634418,4003.6,4002.9,1.74872]
[1733612246893,2.1599197,4003.5,4002.9,1.74872]
[1733612247045,0.7997,4003.6,4002.9,1.74872]
[1733612247947,0.7997,4003.6,4003.0,1.74864]
[1733612248584,2.09542734,4003.6,4003.0,1.74864]
[1733612248926,2.56176991,4003.6,4003.0,1.74864]
[1733612249066,1.26603723,4003.6,4003.0,1.74864]
[1733612249784,0.18644994,4003.5,4003.0,1.74864]
[1733612249985,1.26603723,4003.6,4003.0,1.74864]
[1733612250190,0.18644987,4003.5,4003.0,1.74864]
[1733612250347,2.56167069,4003.6,4003.0,1.74864]
[1733612250544,0.18645168,4003.5,4003.0,1.74864]
[1733612250782,1.26603723,4003.6,4003.0,1.74864]
[1733612250985,0.18645102,4003.5,4002.8,0.8019]
[1733612251286,1.26603723,4003.6,4002.8,2.55066]
[1733612251450,0.186494,4003.5,4002.9,1.74873]
[1733612251652,0.27974948,4003.5,4002.8,0.8019]
[1733612251878,0.7838,4003.3,4002.1,1.88867006]
[1733612252079,0.186486,4003.2,4002.1,1.88867006]
[1733612252244,0.7838,4003.3,4002.1,1.88867006]
[1733612252450,1.05033376,4003.2,4002.3,1.74895]
[1733612252657,0.77904659,4003.1,4002.3,1.74895]
[1733612252860,0.5924975,4003.1,4002.3,1.74895]
[1733612253575,0.18657525,4003.0,4002.3,1.74895]
[1733612253776,0.18657525,4003.0,4002.1,0.8127]
[1733612253777,0.7838,4002.9,4002.1,2.56177]
[1733612253994,0.43179787,4002.8,4002.1,1.74907]
[1733612254180,0.24522676,4002.8,4001.9,1.74916]
[1733612254478,0.24522676,4002.8,4001.7,1.74925]
[1733612254479,0.97039343,4002.7,4001.7,1.74925]
[1733612254677,0.7838,4002.5,4001.5,2.56204]
[1733612254872,0.7838,4002.3,4001.5,1.74934]
[1733612255198,0.7838,4001.7,4000.7,1.74967]
[1733612255414,0.18597701,4001.6,4000.7,1.74967]
[1733612257976,0.18597701,4001.6,4000.8,1.74964]
[1733612259309,0.18597701,4001.6,4000.9,1.7496]
[1733612259474,0.7838,4001.7,4000.9,1.7496]
[1733612260924,0.7838,4001.7,4000.7,1.74969]
[1733612264103,0.7838,4001.7,4000.5,1.74977]
[1733612266373,0.8194,4000.8,3999.9,1.04470276]
[1733612266578,0.8194,4000.8,3999.6,0.8041]
[1733612266806,0.8194,4000.8,3999.6,1.059534]
[1733612267881,0.8194,4000.8,3999.8,1.75008]
[1733612269032,0.7612,4001.4,4000.2,1.74989]
[1733612269882,2.5106,4001.4,4000.2,1.74989]
[1733612270312,0.7612,4001.1,3999.9,1.75002]
[1733612270493,0.7612,4000.9,3999.6,2.11740406]
[1733612270683,0.7612,4000.9,4000.0,1.74998]
[1733612271198,0.7612,4000.9,4000.1,1.74992]
[1733612277186,0.7612,4000.9,3999.6,2.11740406]
[1733612277385,0.7612,4000.9,3999.8,1.75004]
[1733612277617,0.7848,4000.7,3999.8,1.75004]
[1733612279051,0.7848,4000.7,3999.9,1.75004]
[1733612282237,0.7848,4000.7,3999.6,0.255434]
[1733612282550,0.7848,4000.4,3999.4,1.75025]
[1733612282775,0.7848,4000.2,3999.4,1.75025]
[1733612283567,0.7848,4000.2,3999.1,1.07597006]
[1733612283568,0.7848,4000.2,3999.5,1.75021]
[1733612294092,0.7848,4000.2,3999.9,1.75002]
[1733612294291,0.7848,4000.2,4000.0,1.74998]
[1733612297354,0.7848,4000.2,3999.8,1.75007]
[1733612300754,0.7848,4000.2,3999.5,1.75021]
[1733612301093,0.97087701,4000.2,3999.2,2.82632006]
[1733612301303,0.7848,4000.2,3999.8,1.75008]
[1733612305196,0.7848,4000.2,3999.7,1.75011]
[1733612306154,0.7848,4000.2,3999.5,1.75021]
[1733612308132,0.7848,4000.2,3999.1,1.04470276]
[1733612308257,0.7848,4000.2,3999.4,1.75023]
[1733612309161,0.7848,4000.2,3999.1,1.04470276]
[1733612309399,0.7848,4000.2,3999.2,1.04470276]
[1733612309696,0.7848,4000.2,3999.4,1.75024]
[1733612311502,0.86664284,4000.1,3999.4,1.75024]
[1733612311702,0.7848,4000.2,3999.4,1.75024]
[1733612311889,1.20630126,4000.1,3999.4,1.75024]
[1733612312076,0.33965569,4000.1,3999.4,1.75024]
[1733612312485,0.762,3999.9,3999.4,1.75024]
[1733612314166,2.16736535,3999.8,3999.2,1.75034]
[1733612314479,1.80670276,3999.9,3999.2,1.75034]
[1733612314671,0.86682998,3999.8,3999.2,1.75034]
[1733612314867,1.80670276,3999.9,3999.2,1.75034]
[1733612315094,0.8668207,3999.8,3999.2,1.75034]
[1733612315290,1.80670276,3999.9,3999.2,1.75034]
[1733612315569,0.86679224,3999.8,3999.2,1.75034]
[1733612315792,2.14407845,3999.9,3999.2,1.75034]
[1733612315981,0.86678527,3999.8,3999.2,1.75034]
[1733612316307,0.762,3999.8,3999.0,1.75043]
[1733612317193,0.762,3999.8,3999.1,1.75039]
[1733612323824,0.86666446,3999.7,3998.8,2.12067282]
[1733612324007,0.7925,3999.8,3998.9,1.04470276]
[1733612324335,0.86666391,3999.7,3998.8,2.12067282]
[1733612324640,0.7925,3999.6,3999.0,1.75041]
[1733612325201,0.7925,3999.6,3998.8,1.04470276]
[1733612325543,0.7925,3999.4,3998.4,1.04470276]
[1733612325844,2.16686765,3999.3,3998.6,1.75057]
[1733612326044,0.86674706,3999.2,3998.6,1.75057]
[1733612326194,1.04470276,3999.3,3998.7,1.75055]
[1733612326399,0.86655376,3999.2,3998.7,1.75055]
[1733612326600,2.5019096,3999.4,3998.7,1.75055]
[1733612326601,1.45720684,3999.4,3998.7,1.75055]
[1733612326800,0.8665302,3999.3,3998.7,1.75055]
[1733612327037,1.45720684,3999.4,3998.7,1.75055]
[1733612327240,0.86653982,3999.3,3998.7,1.75055]
[1733612327399,1.45720684,3999.4,3998.7,1.75055]
[1733612327744,0.86637864,3999.3,3998.7,1.75055]
[1733612327896,1.45720684,3999.4,3998.6,1.07597006]
[1733612328103,1.56705414,3999.7,3998.9,0.7635]
[1733612328104,1.04470276,3999.6,3998.9,0.7635]
[1733612328302,0.86640957,3999.5,3998.9,0.7635]
[1733612328501,1.04470276,3999.7,3998.9,0.7635]
[1733612328809,2.16574832,3999.6,3999.1,1.75037]
[1733612329016,0.7569,3999.4,3998.9,1.75044]
[1733612329227,0.86636577,3999.3,3998.9,1.75044]
[1733612329540,0.7569,3999.4,3999.0,1.75042]
[1733612332050,0.93706028,3999.4,3998.3,1.85400276]
[1733612332343,0.93706028,3999.4,3998.7,1.75052]
[1733612332543,0.7569,3999.4,3998.7,1.75052]
[1733612333131,0.7569,3999.4,3998.8,1.75052]
[1733612334503,0.7569,3999.4,3998.9,0.02193925]
[1733612334703,0.7569,3999.4,3998.8,1.75052]
[1733612334944,0.7569,3999.4,3998.9,0.02368664]
[1733612335236,0.93706028,3999.4,3998.8,1.75052]
[1733612335644,0.93706028,3999.4,3998.9,0.02368664]
[1733612336021,0.93706028,3999.4,3998.8,1.75052]
[1733612336520,0.93706028,3999.4,3998.9,0.02368664]
[1733612340445,0.7569,3999.4,3998.9,0.02368664]
[1733612340762,0.7569,3999.4,3998.9,1.77416664]
[1733612341420,0.7569,3999.4,3998.9,0.02368664]
[1733612341612,0.7569,3999.4,3999.0,1.75043]
[1733612342010,0.7569,3999.4,3999.1,0.02213385]
[1733612343109,0.7569,3999.4,3999.0,1.75043]
[1733612346341,0.7569,3999.4,3998.8,1.75052]
[1733612346342,0.96245214,3999.4,3998.8,1.75052]
[1733612350975,0.96245214,3999.4,3998.4,2.12067282]
[1733612351138,0.96245214,3999.4,3998.6,1.7506]
[1733612355667,1.04470276,3999.2,3998.6,1.7506]
[1733612355866,0.8292,3998.9,3998.4,1.07597006]
[1733612356047,0.8292,3998.9,3998.5,1.75065]
[1733612357058,0.86655683,3998.8,3998.5,1.75065]
[1733612357257,0.8292,3998.9,3998.5,1.75065]
[1733612357796,0.86655603,3998.8,3998.5,1.75065]
[1733612358029,0.8292,3998.9,3998.5,1.75065]
[1733612358298,0.86655456,3998.8,3998.5,1.75065]
[1733612358458,0.8292,3998.9,3998.5,1.75065]
[1733612358654,0.86653176,3998.8,3998.5,1.75065]
[1733612358959,0.8292,3998.9,3998.5,1.75065]
[1733612359188,0.86653507,3998.8,3998.5,1.75065]
[1733612359400,1.87390276,3998.9,3998.5,1.75065]
[1733612359571,0.86654738,3998.8,3998.5,1.75065]
[1733612359906,0.8292,3998.9,3998.5,1.75065]
[1733612360067,0.86653722,3998.8,3998.5,1.75065]
[1733612360269,0.8292,3998.9,3998.5,1.75065]
[1733612360499,1.04470276,3999.0,3998.5,1.75065]
[1733612360705,2.16623103,3998.9,3998.5,1.75065]
[1733612360917,1.04470276,3999.0,3998.5,1.75065]
[1733612361082,1.04470276,3999.0,3997.9,2.55599]
[1733612361083,1.87390276,3998.8,3997.9,2.55599]
[1733612361416,0.8292,3998.6,3997.9,1.75089]
[1733612361572,0.86644378,3998.5,3997.8,1.07597006]
[1733612361785,0.86648308,3998.4,3997.8,1.07597006]
[1733612362121,2.166315,3998.3,3997.8,1.07597006]
[1733612362340,1.04470276,3998.4,3997.5,0.12733361]
[1733612362341,0.8292,3998.1,3997.5,1.75108]
[1733612362480,0.8292,3998.1,3997.5,2.82705006]
[1733612363202,0.8292,3998.1,3997.2,2.55631]
[1733612363516,0.8292,3998.1,3997.3,1.07597006]
[1733612363721,0.86600396,3998.0,3997.3,1.07597006]
[1733612363929,0.8292,3998.1,3997.3,1.07597006]
[1733612364086,0.86601088,3998.0,3997.3,1.07597006]
[1733612364303,1.34836969,3998.1,3997.3,1.07597006]
[1733612364747,0.8292,3998.1,3997.6,1.07597006]
[1733612365833,0.8292,3998.1,3997.6,1.84217006]
[1733612366015,0.8095,3998.5,3997.9,1.07597006]
[1733612366540,1.04470276,3998.8,3998.3,1.75072]
[1733612366698,0.86522314,3998.7,3998.3,1.75072]
[1733612366901,1.04470276,3998.8,3998.3,1.75072]
[1733612367101,0.86522101,3998.7,3997.9,1.07597006]
[1733612367341,1.04470276,3998.8,3998.2,1.75078]
[1733612367647,0.86523962,3998.7,3998.2,1.75078]
[1733612367942,1.04470276,3998.8,3998.2,1.75078]
[1733612368149,0.86518916,3998.7,3998.2,1.75078]
[1733612368305,1.40542748,3998.8,3998.2,1.75078]
[1733612368502,2.1630575,3998.7,3998.2,1.75078]
[1733612368710,1.40542748,3998.8,3998.2,1.75078]
[1733612368929,2.37655414,3999.0,3997.9,1.84217006]
[1733612368930,0.86516398,3998.7,3997.9,1.84217006]
[1733612369238,1.29770101,3998.8,3997.9,1.84217006]
[1733612369466,1.04470276,3998.9,3997.9,1.84217006]
[1733612369623,0.86513391,3998.8,3998.5,1.75064]
[1733612369827,1.29769337,3998.9,3998.5,1.75064]
[1733612370117,1.85420276,3999.0,3998.5,1.75064]
[1733612370322,2.16282317,3998.9,3998.5,1.75064]
[1733612370557,2.19632845,3999.0,3998.3,0.7578]
[1733612370558,1.04470276,3999.0,3998.3,0.7578]
[1733612370746,0.86514362,3998.9,3998.7,1.75056]
[1733612370919,1.04470276,3999.1,3998.7,1.75056]
[1733612371123,0.86512464,3999.0,3998.7,1.75056]
[1733612371342,1.23068232,3999.2,3998.7,1.75056]
[1733612371517,0.86516791,3999.1,3998.7,1.75056]
[1733612371721,1.04470276,3999.2,3998.7,1.75056]
[1733612371923,2.16289793,3999.1,3998.7,1.75056]
[1733612372124,1.04470276,3999.2,3998.7,1.75056]
[1733612372346,2.16290011,3999.1,3998.7,1.75056]
[1733612372537,1.04470276,3999.2,3998.7,1.75056]
[1733612372737,0.86515987,3999.1,3998.7,1.75056]
[1733612372932,1.86620276,3999.3,3998.8,1.75052]
[1733612373138,2.16288412,3999.2,3999.0,1.75043]
[1733612373448,1.56705414,3999.4,3998.5,1.07597006]
[1733612373449,1.04470276,3999.4,3998.5,1.07597006]
[1733612373625,2.16275186,3999.3,3998.9,1.75047]
[1733612373823,1.04470276,3999.4,3998.9,1.75047]
[1733612374054,1.04470276,3999.4,3998.5,1.07597006]
[1733612374055,2.16281675,3999.3,3998.5,1.07597006]
[1733612374264,1.04470276,3999.4,3998.5,1.07597006]
[1733612374265,0.8651267,3999.2,3998.5,1.07597006]
[1733612374566,1.38802845,3999.4,3998.9,1.75046]
[1733612374776,2.16286348,3999.3,3998.9,1.75046]
[1733612375070,1.38802845,3999.4,3998.9,1.75046]
[1733612375251,2.06430092,3999.3,3998.9,1.75046]
[1733612375426,1.19915826,3999.3,3998.9,1.75046]
[1733612378698,0.8215,3999.3,3998.9,1.75046]
[1733612380677,0.8652617,3999.2,3998.9,1.75046]
[1733612380882,0.8215,3999.3,3998.9,1.75046]
[1733612381066,0.86526371,3999.2,3998.9,1.75046]
[1733612381263,0.8215,3999.3,3998.9,1.75046]
[1733612381468,0.86524749,3999.2,3998.9,1.75046]
[1733612381794,0.8215,3999.3,3998.9,1.75046]
[1733612381995,0.8215,3999.3,3998.6,0.7578]
[1733612382172,0.8215,3999.3,3998.8,1.75052]
[1733612384219,1.16482569,3999.3,3998.4,1.75069]
[1733612384449,1.16482569,3999.3,3998.3,1.75074]
[1733612384450,0.86534673,3999.2,3998.3,1.75074]
[1733612384662,0.8053,3999.2,3998.4,1.75069]
[1733612385708,0.8053,3999.2,3998.6,1.75059]
[1733612387458,0.99030028,3999.2,3998.6,1.75059]
[1733612388128,0.99030028,3999.2,3998.4,1.07597006]
[1733612389156,0.99030028,3999.2,3998.3,1.75072]
[1733612389324,0.99030028,3999.2,3998.2,2.52838]
[1733612389827,0.99030028,3999.2,3998.2,1.75078]
[1733612389828,0.7859,3999.0,3998.2,1.75078]
[1733612390517,0.9874603,3999.0,3998.2,1.75078]
[1733612391023,1.65155577,3998.9,3998.0,1.75087]
[1733612391213,0.7859,3998.8,3998.0,1.75087]
[1733612391716,0.7859,3998.8,3997.9,1.07597006]
[1733612392935,0.7859,3998.8,3997.6,0.93026447]
[1733612392936,2.53647,3998.7,3997.5,1.04470276]
[1733612393124,0.7859,3998.5,3997.6,1.07597006]
[1733612393517,0.7859,3998.5,3997.9,1.07597006]
[1733612394212,0.7859,3998.5,3997.4,1.04470276]
[1733612394413,0.7859,3998.5,3997.3,2.12067282]
[1733612394616,0.7739,3998.2,3997.3,1.07597006]
[1733612394916,0.7739,3998.0,3997.1,1.07597006]
[1733612395462,0.7739,3997.8,3997.0,1.07597006]
[1733612399797,0.7739,3997.8,3996.6,2.79616276]
[1733612399955,1.75096,3997.8,3996.6,1.75146]
[1733612400155,0.7739,3997.6,3996.5,0.7937]
[1733612400505,1.75106,3997.6,3996.5,0.51570269]
[1733612400657,1.75106,3997.6,3996.4,1.75157]
[1733612400658,0.7739,3997.5,3996.4,1.75157]
[1733612401602,0.7739,3997.3,3996.1,1.75168]
[1733612401769,0.7739,3997.3,3996.1,2.82765006]
[1733612401983,0.7739,3997.3,3996.2,1.75165]
[1733612402168,0.7739,3997.3,3996.1,1.07597006]
[1733612402169,0.7739,3997.2,3996.1,1.07597006]
[1733612402383,0.7739,3997.1,3995.9,1.75175]
[1733612402590,0.7739,3997.0,3995.9,2.82772006]